{"text_format":"1","workbook":"xlsx","n_sheets":3,"sheets":["Beschreibung","Antrag","Definition"],"not_rendered":{"charts":0,"images":1,"macros":1,"external_links":0,"defined_names":2,"comments":0,"pivot_tables":0},"unopened":[],"bounds":{"document_bytes":16777216,"sheet_cells":100000,"rows_first":2000,"rows_last":500,"rows_between":2000,"halvings":0,"cell_chars":16384,"cell_head_chars":4096},"cells_cut":0,"cells_raw":0,"read":"whole","date_system":"1900"}

{"sheet":"Beschreibung","index":0,"n_rows":18,"n_cols":3,"rows_kept":18,"cut":false,"hidden":false,"merged":[[17,1,17,4],[14,2,15,2],[2,1,2,4],[4,2,5,2],[1,1,1,4],[7,1,7,4],[12,1,12,4],[9,2,10,3]]}
[]
[null,"SALZBURGER BLASMUSIKVERBAND"]
[null,"BESCHREIBUNG ZUM ANTRAG LEO-ERTL-MEDAILLE"]
[]
[null,null,"Grundlage"]
[]
[]
[null,"Der Landesvorstand hat beschlossen, ab Wirkung 1. Juli 2023 die Leo-Ertl-Medaille für die Funktionen Kapellmeister:in, Stabführer:in und Jugendreferent:in nach unterschiedlicher Dauer der jeweiligen Funktionsausübung zu vergeben. Die Verleihung der jeweiligen Ausprägung erfolgt nach einer zu erreichenden Gesamtpunkteanzahl (Bronze 30, Silber 50 und Gold 70 Punkte).\n\nAls Berechnungshilfe zur Antragstellung wird eine Excel-Tabelle eingeführt, in der alle Funktionen der auszuzeichnenden Person einzutragen sind. In der Excel sind die beschlossenen Regeln hinterlegt, die Summe der Punkte wird automatisch berechnet.\n\nGrundsätzlich gelten folgende Regeln\n• In der Berechnung sind Ausbildung, Tätigkeit und Teilnahme an Wertungen integriert.\n• Bei gleichzeitig geleisteten Tätigkeiten auf Kapellenebene und Auswahlorchestern (egal ob bei einer oder mehreren Kapellen) gilt immer nur eine und immer die höher wertige Stelle.\n• Bei zusätzlicher Tätigkeit in Dachverbänden gilt diese Zeit zusätzlich.\n• Teilnahme an Wertungen sind immer zusätzlich zum \"Jahr\" zu sehen (1x / Jahr möglich), analog zum Blasmusikpreis.\n\nAblauf der Antragstellung\n•  Der Antrag ist wie gehabt über das BMV zu stellen, die Regeln sind dort NICHT hinterlegt\n•  Die Excel wird über die Homepage des SBV zum Download bereit gestellt\n•  Zum Antrag ist eine Berechnung im Excel zu machen und als pdf zu drucken\n•  Dieser pdf-Ausdruck ist zum Antrag im BMV hochzuladen\n•  Bei Fragen zu Auszeichnungen ist auch in diesem Fall der Bezirksobmann zu kontaktieren."]
[]
[null,null,"Anwendung Formular (Arbeitsmappe Antrag)"]
[]
[]
[null,"Im Antrag sind folgende Felder auszufüllen:\n- Name des/der zu Ehrenden\n- Musikverein\n- Name und Funktion des/der Antragsteller:in\n\n- Funktionen\n   + Funktion aus dem Drop-Down-Menü auswählen\n   + Name des jeweiligen Vereines/Verbandes, in welchem die Funktion ausgeübt wurde\n   + Beginn und Ende der Funktion (überlappende Zeiten werden automatisch berücksichtigt)\n\n- Ausbildungen\n   + Angabe von Ausbildungsstätte und Datum der Abschlussprüfung\n   + In der Spalte Auswahl die jeweilige Ausbildung auf ja setzen (Drop-Down-Feld)\n\n- Wettbewerbe\n  + Angaben zum jeweiligen Wettbewerb\n  + Anzahl der jeweiligen Teilnahmen in der Spalte Anzahl eingeben"]
[]
[null,null,"Hinweis"]
[]
[]
[null,"Damit die Berechnung funktioniert, muss das integrierte Makro in dieser EXCEL-Datei\naktiviert werden!"]

{"sheet":"Antrag","index":1,"n_rows":50,"n_cols":23,"rows_kept":50,"cut":false,"hidden":false,"merged":[[49,5,49,11],[3,10,3,11],[48,5,48,11],[42,3,42,7],[39,3,39,7],[44,3,44,7],[46,1,46,11],[47,1,47,11],[32,3,32,7],[33,3,33,7],[34,3,34,7],[35,3,35,7],[40,3,40,7],[41,3,41,7],[16,9,16,10],[1,1,1,11],[5,3,5,10],[7,3,7,10],[9,3,9,10],[11,3,11,10],[16,13,16,20],[14,1,14,11],[29,1,29,11],[37,1,37,11],[2,1,2,11]]}
[]
[null,"SALZBURGER BLASMUSIKVERBAND"]
[null,"ANTRAG LEO-ERTL-MEDAILLE"]
[null,null,null,null,null,null,null,null,null,null,"Version 1.0 | 17.02.2023"]
[]
[null,null,"Name des/der zu Ehrenden",">Vorname Nachname<"]
[]
[null,null,"Verein",">Musikkapelle<"]
[]
[null,null,"Antragsteller:in",">Vorname Nachname<"]
[]
[null,null,"Funktion Antragsteller:in",">Obmann, Schriftführer, etc.<"]
[]
[]
["       ","Funktionen"]
[]
[null,null,null,null,null,null,null,null,null,"Zeitraum [in Jahren]",null,null,null,"Sortierung nach aufrechenbar und Wertigkeit"]
[null,"Nr","Funktion","Verein/Verband","Beginn","Ende","berechenbar","Wertigkeit","aufrechenbar","gesamt","angerechnet","Punkte",null,{"$f":"B18","v":"Nr"},"Funktion","Verein/Verband","Beginn","Ende","berechenbar","Wertigkeit","aufrechenbar","Resttage","Restjahre"]
[null,1,"Kapellmeister:in",">Vereinsname<","2010-01-01","2010-01-31",{"$f":"AND($C19>0,$E19>0,$F19>0)","v":true},{"$f":"IF($G19,_xlfn.XLOOKUP($C19,Def_Funktion[Funktion],Def_Funktion[Punkte p.a.],0),0)","v":3},{"$f":"IF($G19,_xlfn.XLOOKUP($C19,Def_Funktion[Funktion],Def_Funktion[Aufrechnen],0),0)","v":false},{"$f":"IF($G19,ROUND((F19-E19+1)/365.25,2),\"\")","v":0.08},{"$f":"IF($G19,_xlfn.XLOOKUP($B19,$N$19:$N$28,$W$19:$W$28,0),\"\")","v":0.08},{"$f":"IF($G19,$H19*$K19,\"\")","v":0.24},null,{"$f":"_xlfn.SORTBY($B$19:$I$28,$I$19:$I$28,-1,$H19:$H28,-1)","v":1},"Kapellmeister:in",">Vereinsname<","2010-01-01","2010-01-31",true,3,false,{"$f":"IF($S19,R19-Q19+1,0)","v":31},{"$f":"ROUND($V19/365.25,2)","v":0.08}]
[null,2,null,null,null,null,{"$f":"AND($C20>0,$E20>0,$F20>0)","v":false},{"$f":"IF($G20,_xlfn.XLOOKUP($C20,Def_Funktion[Funktion],Def_Funktion[Punkte p.a.],0),0)","v":0},{"$f":"IF($G20,_xlfn.XLOOKUP($C20,Def_Funktion[Funktion],Def_Funktion[Aufrechnen],0),0)","v":0},"","","",null,2,0,0,"00:00:00","00:00:00",false,0,0,{"$f":"IF($S20,IF($U20,$R20-$Q20,Resttage($Q20:$R20,$Q$19:$R19)),0)","v":0},{"$f":"ROUND($V20/365.25,2)","v":0}]
[null,3,null,null,null,null,false,{"$f":"IF($G21,_xlfn.XLOOKUP($C21,Def_Funktion[Funktion],Def_Funktion[Punkte p.a.],0),0)","v":0},{"$f":"IF($G21,_xlfn.XLOOKUP($C21,Def_Funktion[Funktion],Def_Funktion[Aufrechnen],0),0)","v":0},"","","",null,3,0,0,"00:00:00","00:00:00",false,0,0,{"$f":"IF($S21,IF($U21,$R21-$Q21,Resttage($Q21:$R21,$Q$19:$R20)),0)","v":0},0]
[null,4,null,null,null,null,false,{"$f":"IF($G22,_xlfn.XLOOKUP($C22,Def_Funktion[Funktion],Def_Funktion[Punkte p.a.],0),0)","v":0},{"$f":"IF($G22,_xlfn.XLOOKUP($C22,Def_Funktion[Funktion],Def_Funktion[Aufrechnen],0),0)","v":0},"","","",null,4,0,0,"00:00:00","00:00:00",false,0,0,{"$f":"IF($S22,IF($U22,$R22-$Q22,Resttage($Q22:$R22,$Q$19:$R21)),0)","v":0},0]
[null,5,null,null,null,null,false,{"$f":"IF($G23,_xlfn.XLOOKUP($C23,Def_Funktion[Funktion],Def_Funktion[Punkte p.a.],0),0)","v":0},{"$f":"IF($G23,_xlfn.XLOOKUP($C23,Def_Funktion[Funktion],Def_Funktion[Aufrechnen],0),0)","v":0},"","","",null,5,0,0,"00:00:00","00:00:00",false,0,0,{"$f":"IF($S23,IF($U23,$R23-$Q23,Resttage($Q23:$R23,$Q$19:$R22)),0)","v":0},0]
[null,6,null,null,null,null,false,{"$f":"IF($G24,_xlfn.XLOOKUP($C24,Def_Funktion[Funktion],Def_Funktion[Punkte p.a.],0),0)","v":0},{"$f":"IF($G24,_xlfn.XLOOKUP($C24,Def_Funktion[Funktion],Def_Funktion[Aufrechnen],0),0)","v":0},"","","",null,6,0,0,"00:00:00","00:00:00",false,0,0,{"$f":"IF($S24,IF($U24,$R24-$Q24,Resttage($Q24:$R24,$Q$19:$R23)),0)","v":0},0]
[null,7,null,null,null,null,false,{"$f":"IF($G25,_xlfn.XLOOKUP($C25,Def_Funktion[Funktion],Def_Funktion[Punkte p.a.],0),0)","v":0},{"$f":"IF($G25,_xlfn.XLOOKUP($C25,Def_Funktion[Funktion],Def_Funktion[Aufrechnen],0),0)","v":0},"","","",null,7,0,0,"00:00:00","00:00:00",false,0,0,{"$f":"IF($S25,IF($U25,$R25-$Q25,Resttage($Q25:$R25,$Q$19:$R24)),0)","v":0},0]
[null,8,null,null,null,null,false,{"$f":"IF($G26,_xlfn.XLOOKUP($C26,Def_Funktion[Funktion],Def_Funktion[Punkte p.a.],0),0)","v":0},{"$f":"IF($G26,_xlfn.XLOOKUP($C26,Def_Funktion[Funktion],Def_Funktion[Aufrechnen],0),0)","v":0},"","","",null,8,0,0,"00:00:00","00:00:00",false,0,0,{"$f":"IF($S26,IF($U26,$R26-$Q26,Resttage($Q26:$R26,$Q$19:$R25)),0)","v":0},0]
[null,9,null,null,null,null,false,{"$f":"IF($G27,_xlfn.XLOOKUP($C27,Def_Funktion[Funktion],Def_Funktion[Punkte p.a.],0),0)","v":0},{"$f":"IF($G27,_xlfn.XLOOKUP($C27,Def_Funktion[Funktion],Def_Funktion[Aufrechnen],0),0)","v":0},"","","",null,9,0,0,"00:00:00","00:00:00",false,0,0,{"$f":"IF($S27,IF($U27,$R27-$Q27,Resttage($Q27:$R27,$Q$19:$R26)),0)","v":0},0]
[null,10,null,null,null,null,false,{"$f":"IF($G28,_xlfn.XLOOKUP($C28,Def_Funktion[Funktion],Def_Funktion[Punkte p.a.],0),0)","v":0},{"$f":"IF($G28,_xlfn.XLOOKUP($C28,Def_Funktion[Funktion],Def_Funktion[Aufrechnen],0),0)","v":0},"","","",null,10,0,0,"00:00:00","00:00:00",false,0,0,{"$f":"IF($S28,IF($U28,$R28-$Q28,Resttage($Q28:$R28,$Q$19:$R27)),0)","v":0},0]
[]
[null,"Ausbildung"]
[]
[null,"Nr","Prüfung","wo und wann",null,null,null,null,null,null,"Auswahl","Punkte"]
[null,"a",{"$f":"Definition!B32","v":"Kapellmeisterprüfung"},">z.B. Musikum, 13.04.2004<",null,null,null,null,null,null,"nein",{"$f":"IF($K33=\"ja\",Definition!$C32,\"\")","v":""}]
[null,"b",{"$f":"Definition!B33","v":"Stabführerprüfung"},">z.B. SBV, 14.06.2007<",null,null,null,null,null,null,"nein",{"$f":"IF($K34=\"ja\",Definition!$C33,\"\")","v":""}]
[null,"c",{"$f":"Definition!B34","v":"Lehrgang Jugendreferent:innen"},">z.B. ÖBV, 30.10.2003<",null,null,null,null,null,null,"nein",{"$f":"IF($K35=\"ja\",Definition!$C34,\"\")","v":""}]
[null,"d",{"$f":"Definition!B35","v":"Lehrgang Jugendorchesterleiter:innen"},">z.B. ÖBV, 19.04.2009<",null,null,null,null,null,null,"nein",{"$f":"IF($K36=\"ja\",Definition!$C35,\"\")","v":""}]
[]
[null,"Wettbewerbe"]
[]
[null,"Nr","Wettbewerb","Auflistung der Wettbewerbsjahre",null,null,null,null,null,null,"Anzahl","Punkte"]
[null,"I","Konzertwertungen\nals aktive(r) Kapellmeister:in",null,null,null,null,null,null,null,0,{"$f":"IF($K41>0,$K41*Definition!$C38,\"\")","v":""}]
[null,"II","Marschwertungen\nals aktive(r) Stabführer:in oder Kapellmeister:in",null,null,null,null,null,null,null,0,{"$f":"IF($K42>0,$K42*Definition!$C39,\"\")","v":""}]
[null,"III","Jugendorchesterwettbewerbe\nals aktive(r) Jugendorchesterleiter:in",null,null,null,null,null,null,null,0,{"$f":"IF($K43>0,$K43*Definition!$C40,\"\")","v":""}]
[]
[null,null,"Verleihbare Medaille:",{"$f":"IF(Antrag!$L$45<Definition!$C$43,\"keine Medaille\",IF(Antrag!$L$45<Definition!$C$44,Definition!$B$43,IF(Antrag!$L$45<Definition!$C$45,Definition!$B$44,Definition!$B$45)))","v":"keine Medaille"},null,null,null,null,null,null,"Summe",{"$f":"SUM(L19:L43)","v":0.24}]
[]
[null,"Kommentar"]
[null,">Text<"]
[]
[null,null,null,null,null,"Unterschrift Antragsteller"]

{"sheet":"Definition","index":2,"n_rows":45,"n_cols":4,"rows_kept":45,"cut":false,"hidden":false,"merged":[[1,1,1,3],[0,1,0,3]]}
[null,"Definition Punkteschlüssel zur\nVerleihung der Leo-Ertl-Medaille"]
[null,"Stand 17. Februar 2023"]
[null,"Funktion","Punkte p.a.","Aufrechnen"]
[null,"Kapellmeister:in",3,false]
[null,"Kapellmeister-Stv.",1,false]
[null,"Stabführer:in",2,false]
[null,"Stabführer-Stv.",1,false]
[null,"Jugendreferent:in",2,false]
[null,"Jugendreferent-Stv.",1,false]
[null,"Jugendorchesterleiter:in",2,false]
[null,"Jugendorchesterleiter-Stv.",1,false]
[null,"Bezirkskapellmeister:in",3,true]
[null,"Bezirkskapellmeister-Stv.",2,true]
[null,"Bezirksstabführer:in",2,true]
[null,"Bezirksstabführer-Stv.",1,true]
[null,"Bezirksjugendreferent:in",2,true]
[null,"Bezirksjugendreferent-Stv.",1,true]
[null,"Landeskapellmeister:in",{"$f":"C12","v":3},true]
[null,"Landeskapellmeister-Stv.",{"$f":"C13","v":2},true]
[null,"Landesstabführer:in",2,true]
[null,"Landesstabführer-Stv.",1,true]
[null,"Landesjugendreferent:in",2,true]
[null,"Landesjugendreferent-Stv.",1,true]
[null,"Bundeskapellmeister:in",3,true]
[null,"Bundeskapellmeister-Stv.",2,true]
[null,"Bundestabführer:in",2,true]
[null,"Bundesstabführer-Stv.",1,true]
[null,"Bundesjugendreferent:in",2,true]
[null,"Bundesjugendreferent-Stv.",1,true]
[]
[null,"Ausbildung","Punkte"]
[null,"Kapellmeisterprüfung",5]
[null,"Stabführerprüfung",2]
[null,"Lehrgang Jugendreferent:innen",3]
[null,"Lehrgang Jugendorchesterleiter:innen",3]
[]
[null,"Wettbewerbe","Punkte je T."]
[null,"Konzertwertung",2]
[null,"Marschwertung",2]
[null,"Jugendorchesterwettbewerb",2]
[]
[null,"Verleihungsstufen","min. Punkte"]
[null,"Leo Ertl-Medaille in Bronze",30]
[null,"Leo Ertl-Medaille in Silber",50]
[null,"Leo Ertl-Medaille in Gold",70]